fUST/lending_fUST_20250823
["ID","MTS","AMOUNT","RATE_DAILY","PERIOD"]
[380985018,1755919837843,-500.0,0.0002609,2]
[380985019,1755919837852,-500.0,0.0002609,2]
[380985020,1755919837861,-500.0,0.0002609,2]
[380985021,1755919837871,-500.0,0.0002609,2]
[380985022,1755919837880,-130.77394713,0.0002609,2]
[380985023,1755919837891,-369.22605287,0.0002609,2]
[380985024,1755919837900,-500.0,0.0002609,2]
[380985025,1755919837911,-500.0,0.0002609,2]
[380985026,1755919837921,-500.0,0.0002609,2]
[380985027,1755919837930,-1000.0,0.00026104,2]
[380985028,1755919837939,-637.0,0.00026121,2]
[380985029,1755919837948,-2154.0,0.00026121,2]
[380985030,1755919837958,-408.0,0.00026121,2]
[380985031,1755919837967,-153.0,0.00026395,2]
[380985032,1755919837976,-153.0,0.00026395,2]
[380985033,1755919837986,-153.0,0.00026395,2]
[380985034,1755919837995,-153.0,0.00026395,2]
[380985035,1755919838005,-153.0,0.00026395,2]
[380985036,1755919838014,-153.0,0.00026395,2]
[380985037,1755919838023,-153.0,0.00026395,2]
[380985038,1755919838032,-153.0,0.00026395,2]
[380985039,1755919838041,-153.0,0.00026395,2]
[380985040,1755919838050,-153.0,0.00026395,2]
[380985041,1755919838060,-600.0,0.00026506,2]
[380985042,1755919838069,-192.744982,0.00026676,2]
[380985043,1755919838078,-1000.0,0.00026712,2]
[380985044,1755919838088,-199.0,0.00026749,20]
[380985045,1755919838097,-600.0,0.00026849,2]
[380985046,1755919838107,-500.0,0.00027203,2]
[380985047,1755919838116,-159.22539018,0.00027425,30]
[380985048,1755919838125,-151.0,0.00027459,2]
[380985049,1755919838134,-160.03175392,0.00027523,2]
[380985050,1755919838143,-600.0,0.00027761,2]
[380985051,1755919838152,-159.22539018,0.00027781,30]
[380985052,1755919838161,-1000.0,0.00027808,7]
[380985053,1755919838170,-500.0,0.00027881,2]
[380985054,1755919838179,-2380.15,0.000281,7]
[380985055,1755919838189,-425.87620711,0.00028184,2]
[380985056,1755919838200,-2666.19608035,0.00028184,2]
[380985057,1755919838210,-295.48633335,0.00028234,2]
[380985069,1755919839803,-204.51366665,0.00028234,2]
[380985070,1755919839813,-224.21,0.00028255,10]
[380985071,1755919839824,-50374.6219856,0.00028265,2]
[380985072,1755919839836,-3894.45196712,0.00028265,2]
[380985073,1755919839845,-186.84,0.00028265,10]
[380985074,1755919839854,-200.89170529,0.00028274,10]
[380985075,1755919839863,-361.44019529,0.00028274,2]
[380985076,1755919839873,-307.62007646,0.00028274,2]
[380985077,1755919839882,-420.69891819,0.00028274,2]
[380985078,1755919839892,-500.0,0.00028274,2]
[380985079,1755919839902,-500.0,0.00028274,2]
[380985080,1755919839912,-413.61627001,0.00028274,2]
[380985081,1755919839922,-500.0,0.00028274,2]
[380985082,1755919839931,-500.0,0.00028274,2]
[380985083,1755919839942,-500.0,0.00028274,2]
[380985084,1755919839951,-500.0,0.00028274,2]
[380985085,1755919839960,-500.0,0.00028274,2]
[380985086,1755919839969,-500.0,0.00028274,2]
[380985087,1755919839979,-500.0,0.00028274,2]
[380985088,1755919839988,-500.0,0.00028274,2]
[380985089,1755919839998,-174.67012583,0.00028274,10]
[380985090,1755919840007,-152.30675126,0.00028274,10]
[380985091,1755919840017,-152.84964039,0.00028274,10]
[380985092,1755919840027,-151.53999679,0.00028274,10]
[380985093,1755919840036,-15815.86121305,0.00028275,2]
[380985102,1755919845893,-155.7,0.00028265,10]
[380985103,1755919845905,-165.73899706,0.00028274,2]
[380985104,1755919885286,5763.49,0.0002,10]
[380985266,1755921037970,-322.2346909,0.000239,2]
[380985278,1755921043012,-369.32457995,0.000239,2]
[380985290,1755921046121,-255.75946843,0.000239,2]
[380985310,1755921176686,197.0,0.00027397,120]
[380985311,1755921188762,171.862436,0.00013699,2]
[380985395,1755922232314,-171.862436,0.00020187,2]
[380985397,1755922232323,-424.0,0.00023899,2]
[380985399,1755922232333,-300.0,0.00023899,2]
[380985401,1755922232343,-300.0,0.00023899,2]
[380985403,1755922232353,-300.0,0.00023899,2]
[380985404,1755922232362,-521.95909531,0.000239,2]
[380985405,1755922232372,-280.60520724,0.000239,2]
[380985406,1755922232383,-3722.24126072,0.000239,2]
[380985407,1755922232392,-626.912,0.000239,30]
[380985408,1755922232403,-3988.16543183,0.000239,2]
[380985409,1755922232423,-1413.33120849,0.000239,2]
[380985410,1755922232434,-611.795,0.000239,2]
[380985411,1755922232446,-510.9,0.000239,2]
[380985449,1755922238224,-199.0,0.000238,30]
[380985450,1755922238233,-255.68782131,0.000239,2]
[380985451,1755922238243,-25.31217869,0.000239,2]
[380985475,1755922260353,162.705394,0.00013699,2]
[380985480,1755922611294,4554.51,0.00028373,30]
[380985512,1755923363864,162.593337,0.00013699,2]
[380985581,1755923440440,-162.593337,0.00020187,2]
[380985582,1755923440450,-163.0,0.00022,2]
[380985583,1755923440459,-163.0,0.00022192,7]
[380985584,1755923440469,-163.0,0.00023014,7]
[380985585,1755923440479,-454.45618099,0.000239,2]
[380985586,1755923440488,-934.31,0.000239,2]
[380985587,1755923440498,-165.0,0.00024164,7]
[380985588,1755923440507,-302.60136074,0.00024526,2]
[380985589,1755923440517,-189.9528026,0.0002468,2]
[380985590,1755923440526,-1200.0,0.00024995,2]
[380985591,1755923440536,-160.9697672,0.00024996,2]
[380985592,1755923440545,-160.9697672,0.00024996,2]
[380985593,1755923440555,-160.9697672,0.00024996,2]
[380985594,1755923440564,-12962.47208944,0.00024996,2]
[380985700,1755924356908,151.0,0.00027397,120]
[380985701,1755924361514,164.271033,0.00013699,2]
[380985702,1755924388584,5000.0,0.0002001,2]
[380985703,1755924397349,5000.0,0.0002001,2]
[380985705,1755924405471,5000.0,0.0002001,2]
[380985706,1755924413617,5000.0,0.0002001,2]
[380985707,1755924548226,151.0,0.00027397,120]
[380985728,1755924632766,-164.271033,0.00020187,2]
[380985730,1755924632781,-200.0,0.00023398,10]
[380985731,1755924632798,-200.0,0.00023398,10]
[380985734,1755924632815,-200.0,0.00023398,10]
[380985737,1755924632832,-200.0,0.00023398,10]
[380985738,1755924632849,-215.260999,0.00023398,10]
[380985740,1755924632862,-235.58096657,0.00023429,74]
[380985741,1755924632874,-1200.0,0.00023527,2]
[380985744,1755924632891,-300.0,0.00023528,2]
[380985745,1755924632907,-300.0,0.00023528,2]
[380985746,1755924632920,-300.0,0.00023528,2]
[380985747,1755924632933,-300.0,0.00023528,2]
[380985749,1755924632945,-4071.57495098,0.00023529,2]
[380985750,1755924632960,-549.49,0.0002353,2]
[380985751,1755924632973,-151.0,0.0002353,7]
[380985752,1755924632986,-151.0,0.0002353,7]
[380985753,1755924632999,-159.286329,0.0002353,7]
[380985754,1755924633012,-161.252734,0.0002353,7]
[380985755,1755924633026,-259.612877,0.0002353,7]
[380985756,1755924633045,-259.247872,0.0002353,7]
[380985757,1755924633059,-259.247872,0.0002353,7]
[380985758,1755924633072,-259.247872,0.0002353,7]
[380985759,1755924633086,-259.247872,0.0002353,7]
[380985760,1755924633100,-151.0,0.0002353,7]
[380985761,1755924633113,-151.0,0.0002353,7]
[380985762,1755924633134,-151.0,0.0002353,7]
[380985763,1755924633148,-163.025655,0.0002353,7]
[380985764,1755924633162,-151.0,0.0002353,7]
[380985765,1755924633175,-158.759566,0.0002353,7]
[380985766,1755924633189,-154.439319,0.0002353,7]
[380985767,1755924633201,-160.568594,0.0002353,7]
[380985768,1755924633214,-151.0,0.0002353,7]
[380985769,1755924633228,-152.41845,0.0002353,7]
[380985770,1755924633240,-177.557484,0.0002353,7]
[380985771,1755924633254,-334.906707,0.0002353,7]
[380985772,1755924633268,-334.906707,0.0002353,7]
[380985773,1755924633281,-334.906707,0.0002353,7]
[380985774,1755924633295,-334.906707,0.0002353,7]
[380985775,1755924633308,-33.13323436,0.0002353,7]
[380985776,1755924633333,-301.77347264,0.0002353,7]
[380985777,1755924633347,-334.906707,0.0002353,7]
[380985778,1755924633360,-334.906707,0.0002353,7]
[380985780,1755924633375,-334.906707,0.0002353,7]
[380985781,1755924633394,-334.906707,0.0002353,7]
[380985783,1755924633407,-334.906707,0.0002353,7]
[380985784,1755924633420,-334.906707,0.0002353,7]
[380985785,1755924633434,-334.906707,0.0002353,7]
[380985786,1755924633447,-151.0,0.0002353,7]
[380985787,1755924633461,-158.417417,0.0002353,7]
[380985788,1755924633475,-152.832049,0.0002353,7]
[380985789,1755924633487,-151.0,0.0002353,7]
[380985790,1755924633501,-151.0,0.0002353,7]
[380985791,1755924633513,-152.771918,0.0002353,7]
[380985792,1755924633526,-152.846173,0.0002353,7]
[380985793,1755924633540,-177.20686803,0.000237,2]
[380985794,1755924633554,-151.0,0.00023873,7]
[380985795,1755924633568,-186.755591,0.00023873,7]
[380985796,1755924633582,-151.0,0.00023873,7]
[380985797,1755924633595,-151.0,0.00023873,7]
[380985798,1755924633607,-151.0,0.00023873,7]
[380985799,1755924633621,-255.274982,0.00023873,7]
[380985800,1755924633633,-259.247872,0.00023873,7]
[380985801,1755924633643,-259.247872,0.00023873,7]
[380985802,1755924633652,-259.247872,0.00023873,7]
[380985803,1755924633662,-259.247872,0.00023873,7]
[380985804,1755924633673,-259.247872,0.00023873,7]
[380985805,1755924633683,-259.247872,0.00023873,7]
[380985806,1755924633694,-259.247872,0.00023873,7]
[380985807,1755924633704,-259.247872,0.00023873,7]
[380985808,1755924633859,-151.0,0.00023873,7]
[380985809,1755924633931,-151.0,0.00023873,7]
[380985810,1755924633943,-151.0,0.00023873,7]
[380985811,1755924633953,-187.061354,0.00023873,7]
[380985812,1755924633963,-151.0,0.00023873,7]
[380985813,1755924633973,-151.0,0.00023873,7]
[380985814,1755924633983,-334.906707,0.00023873,7]
[380985815,1755924633993,-334.906707,0.00023873,7]
[380985816,1755924634003,-334.906707,0.00023873,7]
[380985817,1755924634013,-334.906707,0.00023873,7]
[380985818,1755924634023,-334.906707,0.00023873,7]
[380985819,1755924634033,-334.906707,0.00023873,7]
[380985820,1755924634043,-334.906707,0.00023873,7]
[380985821,1755924634053,-334.9067,0.00023873,7]
[380985822,1755924634063,-5000.0,0.00023873,2]
[380985823,1755924634072,-200.41332344,0.00024107,2]
[380985824,1755924634082,-501.71289039,0.00024107,2]
[380985825,1755924634092,-160.03175393,0.00024246,2]
[380985826,1755924634101,-151.0,0.00024384,7]
[380985827,1755924634111,-184.004727,0.00024385,7]
[380985828,1755924634120,-151.0,0.00024385,7]
[380985829,1755924634129,-151.0,0.00024385,7]
[380985830,1755924634140,-151.0,0.00024385,7]
[380985831,1755924634149,-151.0,0.00024385,7]
[380985832,1755924634159,-259.247872,0.00024385,7]
[380985833,1755924634168,-259.247872,0.00024385,7]
[380985834,1755924634178,-259.247872,0.00024385,7]
[380985835,1755924634187,-259.247872,0.00024385,7]
[380985836,1755924634196,-259.247872,0.00024385,7]
[380985837,1755924634206,-259.247872,0.00024385,7]
[380985838,1755924634215,-259.247872,0.00024385,7]
[380985839,1755924634225,-259.247878,0.00024385,7]
[380985840,1755924634234,-151.0,0.00024385,7]
[380985841,1755924634244,-151.0,0.00024385,7]
[380985842,1755924634253,-151.0,0.00024385,7]
[380985843,1755924634263,-151.0,0.00024385,7]
[380985844,1755924634272,-217.0334113,0.00024385,7]
[380985845,1755924634281,-386.9439334,0.00024457,2]
[380985846,1755924634291,-252.59778626,0.00024485,2]
[380985847,1755924634302,-386.4516013,0.00024541,2]
[380985848,1755924634311,-1044.03344103,0.00024612,2]
[380985849,1755924634321,-160.9697672,0.00024712,2]
[380985850,1755924634330,-386.9439334,0.00024741,2]
[380985851,1755924634340,-5990.0,0.000248,2]
[380985852,1755924634349,-759.81121042,0.00024838,2]
[380985853,1755924634359,-1210.40544296,0.00024838,2]
[380985854,1755924634369,-275.27216995,0.00024838,2]
[380985855,1755924634383,-152.675528,0.00024838,7]
[380985856,1755924634393,-299.4513817,0.00024878,2]
[380985857,1755924634403,-155.1716357,0.00024878,2]
[380985858,1755924634412,-581.3595559,0.00024878,2]
[380985859,1755924634422,-398.5760575,0.00024878,2]
[380985860,1755924634432,-1709.57522344,0.00024896,2]
[380985861,1755924634441,-311.9260657,0.000249,2]
[380985862,1755924634454,-376.14580871,0.00025,7]
[380985863,1755924634465,-844.50316758,0.00025,7]
[380985864,1755924634474,-232.37252479,0.00025,7]
[380985865,1755924634483,-500.0,0.00025,2]
[380985866,1755924634493,-200.09481625,0.00025,2]
[380985867,1755924634503,-198.0,0.00025,2]
[380985868,1755924634512,-151.0,0.00025,2]
[380985869,1755924634522,-151.0,0.00025,2]
[380985870,1755924634531,-160.0,0.00025,2]
[380985871,1755924634541,-163.0,0.00025,7]
[380985872,1755924634551,-592.6103728,0.000252,2]
[380985873,1755924634560,-160.0,0.000252,7]
[380985874,1755924634569,-160.0,0.000252,7]
[380985875,1755924634578,-500.0,0.00025205,2]
[380985876,1755924634587,-160.0,0.00025225,2]
[380985877,1755924634596,-160.0,0.00025225,2]
[380985878,1755924634606,-160.0,0.00025225,2]
[380985879,1755924634615,-500.0,0.00025274,2]
[380985880,1755924634625,-151.0,0.00025274,2]
[380985881,1755924634634,-198.0,0.00025274,2]
[380985882,1755924634643,-311.9260657,0.00025295,2]
[380985883,1755924634652,-151.0,0.00025311,7]
[380985884,1755924634661,-2723.41224666,0.00025425,2]
[380985885,1755924634670,-420.0,0.00025527,2]
[380985886,1755924634679,-215.0,0.00025527,2]
[380985887,1755924634688,-294.0594923,0.00025534,2]
[380985888,1755924634698,-294.0594923,0.00025534,2]
[380985889,1755924634708,-294.0594923,0.00025534,2]
[380985890,1755924634717,-294.0594923,0.00025534,2]
[380985891,1755924634725,-1053.4701353,0.00025534,2]
[380985892,1755924634734,-160.9356585,0.00025534,2]
[380985893,1755924634744,-160.9356585,0.00025534,2]
[380985894,1755924634753,-160.9356585,0.00025534,2]
[380985895,1755924634762,-500.0,0.00025548,2]
[380985896,1755924634772,-201.85758733,0.00025548,2]
[380985897,1755924634781,-260.0,0.00025548,2]
[380985898,1755924634791,-151.0,0.00025585,7]
[380985899,1755924634800,-500.0,0.00025624,2]
[380985900,1755924634810,-192.37061348,0.00025633,7]
[380985901,1755924634820,-150.01,0.00025633,7]
[380985902,1755924634829,-155.71,0.00025633,7]
[380985903,1755924634839,-150.0,0.00025633,7]
[380985904,1755924634848,-186.54,0.00025634,7]
[380985905,1755924634857,-150.11,0.00025634,7]
[380985906,1755924634868,-1154.0,0.00025644,2]
[380985907,1755924634878,-1833.01225589,0.00025679,2]
[380985908,1755924634887,-311.9260657,0.0002569,2]
[380985909,1755924634896,-976.179,0.00025724,2]
[380985910,1755924634906,-408.0,0.00025724,2]
[380985911,1755924634915,-1287.55062938,0.00025724,2]
[380985955,1755924638855,-714.92369178,0.00025424,2]
[380985956,1755924638864,-866.44937062,0.00025724,2]
[380985957,1755924638873,-640.115,0.00025724,2]
[380985958,1755924638883,-500.0,0.00025726,2]
[380985959,1755924638892,-300.0,0.00025728,20]
[380985960,1755924638901,-3039.24484166,0.0002573,2]
[380985961,1755924638911,-153.0,0.00025732,2]
[380985962,1755924638920,-153.0,0.00025732,2]
[380985963,1755924638930,-153.0,0.00025732,2]
[380985964,1755924638939,-153.0,0.00025732,2]
[380985965,1755924638948,-153.0,0.00025732,2]
[380985966,1755924638958,-153.0,0.00025732,2]
[380985967,1755924638967,-153.0,0.00025732,2]
[380985968,1755924638976,-153.0,0.00025732,2]
[380985969,1755924638986,-153.0,0.00025732,2]
[380985970,1755924638995,-153.0,0.00025732,2]
[380985971,1755924639004,-153.0,0.00025732,2]
[380985972,1755924639013,-153.0,0.00025732,2]
[380985973,1755924639023,-500.0,0.00025733,2]
[380985974,1755924639032,-150.01,0.00025733,7]
[380985975,1755924639041,-155.71401259,0.00025733,7]
[380985976,1755924639050,-150.0,0.00025733,7]
[380985977,1755924639060,-150.11,0.00025734,7]
[380985978,1755924639069,-160.0,0.0002575,3]
[380985979,1755924639079,-778.51,0.00025759,10]
[380985980,1755924639088,-500.0,0.00025767,2]
[380985981,1755924639098,-500.0,0.00025767,2]
[380985982,1755924639109,-500.0,0.00025767,2]
[380985983,1755924639123,-199.22258335,0.00025767,2]
[380985984,1755924639135,-110.08530107,0.00025767,2]
[380985985,1755924639144,-500.0,0.00025767,2]
[380985986,1755924639154,-500.0,0.00025767,2]
[380985987,1755924639163,-500.0,0.00025767,2]
[380985988,1755924639172,-500.0,0.00025767,2]
[380985989,1755924639181,-500.0,0.00025767,2]
[380985990,1755924639190,-201.96717091,0.00025767,2]
[380985991,1755924639200,-500.0,0.00025767,2]
[380985992,1755924639208,-500.0,0.00025767,2]
[380985993,1755924639218,-500.0,0.00025767,2]
[380985994,1755924639227,-500.0,0.00025767,2]
[380985995,1755924639236,-500.0,0.00025767,2]
[380985996,1755924639246,-205.36546916,0.00025767,2]
[380985997,1755924639255,-500.0,0.00025767,2]
[380985998,1755924639264,-500.0,0.00025767,2]
[380985999,1755924639274,-500.0,0.00025767,2]
[380986000,1755924639284,-500.0,0.00025767,2]
[380986001,1755924639294,-500.0,0.00025767,2]
[380986002,1755924639304,-519.03597142,0.00025767,2]
[380986003,1755924639313,-500.0,0.00025767,2]
[380986004,1755924639323,-500.0,0.00025767,2]
[380986005,1755924639332,-500.0,0.00025767,2]
[380986006,1755924639341,-500.0,0.00025767,2]
[380986007,1755924639350,-500.0,0.00025767,2]
[380986008,1755924639359,-213.61285512,0.00025767,2]
[380986009,1755924639369,-318.71341063,0.00025767,2]
[380986010,1755924639382,-500.0,0.00025767,2]
[380986011,1755924639394,-500.0,0.00025767,2]
[380986012,1755924639403,-20.47829169,0.00025767,2]
[380986013,1755924639430,-479.52170831,0.00025767,2]
[380986014,1755924639440,-500.0,0.00025767,2]
[380986015,1755924639450,-500.0,0.00025767,2]
[380986016,1755924639459,-500.0,0.00025767,2]
[380986017,1755924639470,-500.0,0.00025767,2]
[380986018,1755924639479,-500.0,0.00025767,2]
[380986019,1755924639488,-500.0,0.00025767,2]
[380986020,1755924639498,-500.0,0.00025767,2]
[380986021,1755924639507,-500.0,0.00025767,2]
[380986022,1755924639516,-500.0,0.00025767,2]
[380986023,1755924639525,-500.0,0.00025767,2]
[380986024,1755924639535,-500.0,0.00025767,2]
[380986025,1755924639544,-500.0,0.00025767,2]
[380986026,1755924639554,-500.0,0.00025767,2]
[380986027,1755924639563,-500.0,0.00025767,2]
[380986028,1755924639572,-500.0,0.00025767,2]
[380986029,1755924639581,-500.0,0.00025767,2]
[380986030,1755924639591,-500.0,0.00025767,2]
[380986031,1755924639600,-500.0,0.00025767,2]
[380986032,1755924639609,-500.0,0.00025767,2]
[380986033,1755924639618,-500.0,0.00025767,2]
[380986034,1755924639627,-500.0,0.00025767,2]
[380986035,1755924639636,-500.0,0.00025767,2]
[380986036,1755924639646,-500.0,0.00025767,2]
[380986037,1755924639657,-500.0,0.00025767,2]
[380986038,1755924639667,-500.0,0.00025767,2]
[380986039,1755924639676,-500.0,0.00025767,2]
[380986040,1755924639685,-500.0,0.00025767,2]
[380986041,1755924639694,-500.0,0.00025767,2]
[380986042,1755924639703,-243.52212384,0.00025767,2]
[380986043,1755924639713,-500.0,0.00025767,2]
[380986044,1755924639723,-500.0,0.00025767,2]
[380986045,1755924639731,-500.0,0.00025767,2]
[380986046,1755924639741,-500.0,0.00025767,2]
[380986047,1755924639750,-500.0,0.00025767,2]
[380986048,1755924639759,-500.0,0.00025767,2]
[380986049,1755924639768,-500.0,0.00025767,2]
[380986050,1755924639779,-85636.8573755,0.00025769,2]
[380986051,1755924639787,-204207.83248716,0.00025779,2]
[380986052,1755924639797,-200.0,0.0002579,2]
[380986053,1755924639807,-514.97037334,0.00025822,2]
[380986054,1755924639816,-150.01,0.00025833,7]
[380986055,1755924639825,-150.0,0.00025833,7]
[380986056,1755924639835,-150.11,0.00025834,7]
[380986057,1755924639844,-151.0,0.00025859,7]
[380986058,1755924639853,-21409.2143439,0.00025868,2]
[380986059,1755924639863,-185.32,0.0002587,3]
[380986060,1755924639872,-555.96,0.0002587,3]
[380986061,1755924639881,-215.94678008,0.00025871,2]
[380986062,1755924639891,-268.2243683,0.00025873,2]
[380986063,1755924639900,-502.60074667,0.00025873,2]
[380986064,1755924639909,-160.4118759,0.00025873,2]
[380986065,1755924639919,-501.43720702,0.00025873,2]
[380986066,1755924639929,-163.0,0.0002589,7]
[380986067,1755924639938,-4248.34403603,0.00025907,2]
[380986068,1755924639948,-376.14580871,0.0002592,2]
[380986069,1755924639957,-150.01,0.00025933,7]
[380986070,1755924639966,-150.0,0.00025933,7]
[380986071,1755924639975,-150.11,0.00025934,7]
[380986072,1755924639984,-942.1513292,0.00025938,2]
[380986073,1755924639993,-500.0,0.00025943,2]
[380986074,1755924640002,-150.0,0.00025949,2]
[380986075,1755924640012,-508.2550275,0.00025973,2]
[380986076,1755924640021,-500.0,0.00025973,2]
[380986077,1755924640030,-500.0,0.00025973,2]
[380986078,1755924640039,-500.0,0.00025973,2]
[380986079,1755924640049,-500.0,0.00025973,2]
[380986080,1755924640058,-500.0,0.00025973,2]
[380986081,1755924640068,-42818.4286878,0.0002599,2]
[380986082,1755924640077,-52052.1728,0.00026,2]
[380986083,1755924640087,-160.0,0.00026012,4]
[380986084,1755924640096,-150.01,0.00026033,7]
[380986085,1755924640106,-150.0,0.00026033,7]
[380986086,1755924640115,-150.11,0.00026034,7]
[380986087,1755924640124,-360.0,0.00026096,2]
[380986088,1755924640133,-600.0,0.00026118,2]
[380986089,1755924640142,-153.51644454,0.00026133,7]
[380986090,1755924640151,-150.01,0.00026133,7]
[380986092,1755924640160,-150.0,0.00026133,7]
[380986093,1755924640170,-150.11,0.00026134,7]
[380986094,1755924640179,-150.01,0.00026233,7]
[380986095,1755924640188,-150.11,0.00026234,7]
[380986097,1755924640198,-160.0,0.00026275,5]
[380986098,1755924640207,-1833.01225586,0.00026329,2]
[380986100,1755924640216,-300.0,0.00026331,20]
[380986102,1755924640226,-300.0,0.00026331,20]
[380986104,1755924640235,-150.01,0.00026333,7]
[380986105,1755924640245,-150.11,0.00026334,7]
[380986107,1755924640254,-151.0,0.00026359,2]
[380986108,1755924640263,-500.0,0.00026359,2]
[380986110,1755924640272,-500.0,0.00026359,2]
[380986112,1755924640281,-500.0,0.00026359,2]
[380986113,1755924640291,-500.0,0.00026359,2]
[380986115,1755924640301,-500.0,0.00026359,2]
[380986117,1755924640315,-500.0,0.00026359,2]
[380986118,1755924640325,-500.0,0.00026359,2]
[380986120,1755924640334,-500.0,0.00026359,2]
[380986122,1755924640344,-500.0,0.00026359,2]
[380986123,1755924640353,-500.0,0.00026359,2]
[380986125,1755924640362,-500.0,0.00026359,2]
[380986126,1755924640372,-500.0,0.00026359,2]
[380986128,1755924640385,-150.01,0.00026433,7]
[380986130,1755924640395,-150.11,0.00026434,7]
[380986131,1755924640404,-500.0,0.00026499,2]
[380986133,1755924640413,-504.97065945,0.00026521,2]
[380986135,1755924640426,-1000.0,0.00026521,2]
[380986136,1755924640435,-164.78490728,0.00026521,2]
[380986138,1755924640444,-1000.0,0.00026521,2]
[380986140,1755924640453,-854.97584043,0.00026521,2]
[380986141,1755924640464,-150.01,0.00026533,7]
[380986143,1755924640477,-150.11,0.00026534,7]
[380986145,1755924640486,-160.0,0.00026537,6]
[380986146,1755924640495,-4748.8200651,0.00026565,2]
[380986148,1755924640505,-4841.62177184,0.00026597,2]
[380986150,1755924640514,-150.04564285,0.00026633,7]
[380986151,1755924640524,-150.11,0.00026634,7]
[380986153,1755924640533,-508.6925412,0.00026644,2]
[380986155,1755924640546,-500.0,0.00026667,2]
[380986156,1755924640556,-501.39143293,0.00026667,2]
[380986158,1755924640566,-500.0,0.00026667,2]
[380986160,1755924640576,-164.271033,0.00026676,2]
[380986161,1755924640585,-1200.0,0.00026712,2]
[380986163,1755924640594,-150.11,0.00026734,7]
[380986165,1755924640604,-500.0,0.00026773,2]
[380986166,1755924640612,-502.75902976,0.00026773,2]
[380986168,1755924640622,-160.0,0.000268,7]
[380986169,1755924640631,-150.11,0.00026834,7]
[380986171,1755924640640,-150.11,0.00026934,7]
[380986173,1755924640649,-1833.01225586,0.00026978,2]
[380986174,1755924640658,-150.11,0.00027034,7]
[380986176,1755924640668,-160.0,0.00027062,8]
[380986178,1755924640677,-504.81523867,0.00027068,2]
[380986179,1755924640686,-1500.0,0.00027068,2]
[380986181,1755924640695,-291.91321535,0.00027068,30]
[380986182,1755924640704,-500.02625902,0.00027073,2]
[380986184,1755924640714,-500.0,0.00027073,2]
[380986186,1755924640723,-150.11,0.00027134,7]
[380986187,1755924640733,-291.91321535,0.00027178,30]
[380986189,1755924640743,-1001.213037,0.00027215,2]
[380986191,1755924640752,-501.76618257,0.00027215,2]
[380986200,1755924640876,-150.11,0.00027234,7]
[380986202,1755924640886,-370.64,0.0002724,3]
[380986204,1755924640896,-291.91321535,0.00027315,30]
[380986205,1755924640905,-342.30546957,0.00027321,2]
[380986207,1755924640915,-168.0,0.00027323,2]
[380986209,1755924640924,-160.0,0.00027325,9]
[380986210,1755924640933,-150.11,0.00027334,7]
[380986212,1755924640943,-500.0,0.00027364,2]
[380986213,1755924640952,-1020.54426731,0.00027373,2]
[380986215,1755924640962,-150.0,0.00027373,2]
[380986217,1755924640971,-21409.2143439,0.0002739,2]
[380986218,1755924640980,-502.00106245,0.00027397,5]
[380986220,1755924640990,-6838.30089375,0.000274,2]
[380986222,1755924640999,-156.07,0.00027403,14]
[380986223,1755924641009,-11567.41755507,0.00027413,7]
[380986225,1755924641019,-150.11,0.00027434,15]